[Event "Live Chess"]
[Site "Chess.com"]
[Date "2010.12.11"]
[Round "-"]
[White "cool1000"]
[Black "hipposcottimus"]
[Result "1-0"]
[CurrentPosition "8/p1p2k2/8/6p1/3KP1P1/2N5/5PP1/1r6 b - -"]
[Timezone "UTC"]
[ECO "C23"]
[ECOUrl "https://www.chess.com/openings/Bishops-Opening-2...Nc6"]
[UTCDate "2010.12.11"]
[UTCTime "00:35:43"]
[WhiteElo "1583"]
[BlackElo "1666"]
[TimeControl "60"]
[Termination "cool1000 won on time"]
[StartTime "00:35:43"]
[EndDate "2010.12.11"]
[EndTime "00:37:55"]
[Link "https://www.chess.com/game/live/76071927"]

1. e4 {[%clk 0:01:00]} 1... e5 {[%clk 0:01:00]} 2. Bc4 {[%clk 0:00:59.7]} 2... Nc6 {[%clk 0:00:59.4]} 3. Bxf7+ {[%clk 0:00:59.7]} 3... Kxf7 {[%clk 0:00:57.9]} 4. d3 {[%clk 0:00:59.7]} 4... Nf6 {[%clk 0:00:57.1]} 5. c3 {[%clk 0:00:59.7]} 5... Bc5 {[%clk 0:00:55.3]} 6. Nf3 {[%clk 0:00:59.7]} 6... Rf8 {[%clk 0:00:52.4]} 7. Ng5+ {[%clk 0:00:57.4]} 7... Kg8 {[%clk 0:00:52.2]} 8. Qb3+ {[%clk 0:00:57]} 8... d5 {[%clk 0:00:50]} 9. c4 {[%clk 0:00:55.4]} 9... Na5 {[%clk 0:00:49.6]} 10. Qd1 {[%clk 0:00:51.5]} 10... dxc4 {[%clk 0:00:48]} 11. a3 {[%clk 0:00:48.8]} 11... cxd3 {[%clk 0:00:47]} 12. b4 {[%clk 0:00:48.1]} 12... Bxb4+ {[%clk 0:00:46.4]} 13. axb4 {[%clk 0:00:47]} 13... Ng4 {[%clk 0:00:40.1]} 14. O-O {[%clk 0:00:43.5]} 14... Nc4 {[%clk 0:00:36.7]} 15. Qb3 {[%clk 0:00:41.7]} 15... b5 {[%clk 0:00:31.8]} 16. Ra5 {[%clk 0:00:38.4]} 16... Be6 {[%clk 0:00:30]} 17. Rxb5 {[%clk 0:00:35.7]} 17... d2 {[%clk 0:00:29]} 18. Bxd2 {[%clk 0:00:32.6]} 18... Nxd2 {[%clk 0:00:27.6]} 19. Qxe6+ {[%clk 0:00:31.5]} 19... Kh8 {[%clk 0:00:27.3]} 20. Nf7+ {[%clk 0:00:30.5]} 20... Rxf7 {[%clk 0:00:25.7]} 21. Qxf7 {[%clk 0:00:30.5]} 21... Nxf1 {[%clk 0:00:24.1]} 22. h3 {[%clk 0:00:26.3]} 22... Qd1 {[%clk 0:00:17.3]} 23. hxg4 {[%clk 0:00:23.9]} 23... Ng3+ {[%clk 0:00:15.2]} 24. Kh2 {[%clk 0:00:22.5]} 24... Qh1+ {[%clk 0:00:14.9]} 25. Kxg3 {[%clk 0:00:21.9]} 25... Qh6 {[%clk 0:00:14.1]} 26. Qf3 {[%clk 0:00:20]} 26... Qf4+ {[%clk 0:00:13]} 27. Qxf4 {[%clk 0:00:18.7]} 27... exf4+ {[%clk 0:00:12.8]} 28. Kxf4 {[%clk 0:00:18.7]} 28... Rf8+ {[%clk 0:00:12.4]} 29. Ke3 {[%clk 0:00:18.7]} 29... h6 {[%clk 0:00:12.1]} 30. Nc3 {[%clk 0:00:18.2]} 30... g5 {[%clk 0:00:11.8]} 31. Nd5 {[%clk 0:00:17.4]} 31... Kg7 {[%clk 0:00:11.5]} 32. Ne7 {[%clk 0:00:16.4]} 32... Rf7 {[%clk 0:00:10.1]} 33. Nf5+ {[%clk 0:00:16.4]} 33... Kf6 {[%clk 0:00:08]} 34. Rb8 {[%clk 0:00:16.4]} 34... Re7 {[%clk 0:00:06.3]} 35. Rb7 {[%clk 0:00:15.5]} 35... Re5 {[%clk 0:00:05.4]} 36. Rb5 {[%clk 0:00:15.5]} 36... Rxb5 {[%clk 0:00:03.7]} 37. Nxh6 {[%clk 0:00:14.7]} 37... Rxb4 {[%clk 0:00:03.4]} 38. Ng8+ {[%clk 0:00:13.6]} 38... Kg7 {[%clk 0:00:02.2]} 39. Ne7 {[%clk 0:00:13.6]} 39... Rb3+ {[%clk 0:00:01.9]} 40. Kd4 {[%clk 0:00:11.9]} 40... Kf7 {[%clk 0:00:01.6]} 41. Nd5 {[%clk 0:00:11.5]} 41... Rb1 {[%clk 0:00:00.3]} 42. Nc3 {[%clk 0:00:08.9]} 1-0

[Event "Live Chess"]
[Site "Chess.com"]
[Date "2010.12.11"]
[Round "-"]
[White "hipposcottimus"]
[Black "heartattacker"]
[Result "1-0"]
[CurrentPosition "r5r1/P3Qk2/4b1p1/2B2p2/8/8/1PP2PPP/R3R1K1 b - -"]
[Timezone "UTC"]
[ECO "B01"]
[ECOUrl "https://www.chess.com/openings/Scandinavian-Defense-Mieses-Kotrc-Variation-3.Nc3-Qe5-4.Be2"]
[UTCDate "2010.12.11"]
[UTCTime "00:33:15"]
[WhiteElo "1675"]
[BlackElo "1721"]
[TimeControl "60"]
[Termination "hipposcottimus won by checkmate"]
[StartTime "00:33:15"]
[EndDate "2010.12.11"]
[EndTime "00:34:49"]
[Link "https://www.chess.com/game/live/76071429"]

1. e4 {[%clk 0:01:00]} 1... d5 {[%clk 0:01:00]} 2. exd5 {[%clk 0:00:58.5]} 2... Qxd5 {[%clk 0:00:59.3]} 3. Nc3 {[%clk 0:00:57.5]} 3... Qe5+ {[%clk 0:00:58.2]} 4. Be2 {[%clk 0:00:55.9]} 4... Nf6 {[%clk 0:00:57]} 5. d4 {[%clk 0:00:54.4]} 5... Qe6 {[%clk 0:00:55]} 6. Nf3 {[%clk 0:00:53.5]} 6... Nc6 {[%clk 0:00:53.7]} 7. Ng5 {[%clk 0:00:52.4]} 7... Qd6 {[%clk 0:00:50.8]} 8. O-O {[%clk 0:00:52.1]} 8... h6 {[%clk 0:00:49.4]} 9. Nb5 {[%clk 0:00:49.9]} 9... Qxd4 {[%clk 0:00:46.3]} 10. Nxd4 {[%clk 0:00:48.3]} 10... Nxd4 {[%clk 0:00:45.5]} 11. Qxd4 {[%clk 0:00:47.8]} 11... hxg5 {[%clk 0:00:45]} 12. Bxg5 {[%clk 0:00:46.8]} 12... Be6 {[%clk 0:00:41.5]} 13. Bb5+ {[%clk 0:00:46.3]} 13... c6 {[%clk 0:00:40.7]} 14. Bxc6+ {[%clk 0:00:44.7]} 14... Nd7 {[%clk 0:00:39.1]} 15. Qa4 {[%clk 0:00:44.5]} 15... O-O-O {[%clk 0:00:36.9]} 16. Bxb7+ {[%clk 0:00:43.5]} 16... Kxb7 {[%clk 0:00:36.1]} 17. Qb4+ {[%clk 0:00:42.8]} 17... Ka8 {[%clk 0:00:35.2]} 18. Be3 {[%clk 0:00:42]} 18... Rb8 {[%clk 0:00:33.8]} 19. Qd4 {[%clk 0:00:40.8]} 19... Nb6 {[%clk 0:00:31.9]} 20. a4 {[%clk 0:00:39.3]} 20... g6 {[%clk 0:00:31.1]} 21. a5 {[%clk 0:00:38.5]} 21... Bg7 {[%clk 0:00:29.6]} 22. Qxg7 {[%clk 0:00:36]} 22... Rhg8 {[%clk 0:00:29]} 23. Qd4 {[%clk 0:00:35.6]} 23... f5 {[%clk 0:00:25.2]} 24. axb6 {[%clk 0:00:35]} 24... Kb7 {[%clk 0:00:22.5]} 25. bxa7 {[%clk 0:00:33.5]} 25... Ra8 {[%clk 0:00:21.9]} 26. Qb6+ {[%clk 0:00:32.4]} 26... Kc8 {[%clk 0:00:21.3]} 27. Bc5 {[%clk 0:00:27.6]} 27... Kd7 {[%clk 0:00:19.6]} 28. Qb7+ {[%clk 0:00:25]} 28... Ke8 {[%clk 0:00:17.9]} 29. Rfe1 {[%clk 0:00:24.7]} 29... Kf7 {[%clk 0:00:17]} 30. Qxe7# {[%clk 0:00:24]} 1-0

[Event "Live Chess"]
[Site "Chess.com"]
[Date "2010.12.11"]
[Round "-"]
[White "TigerPop"]
[Black "hipposcottimus"]
[Result "0-1"]
[CurrentPosition "7k/pK5p/1P6/5b2/P7/8/5rqb/8 w - -"]
[Timezone "UTC"]
[ECO "D00"]
[ECOUrl "https://www.chess.com/openings/Queens-Pawn-Opening-Levitsky-Attack-2...c6"]
[UTCDate "2010.12.11"]
[UTCTime "00:30:26"]
[WhiteElo "1565"]
[BlackElo "1666"]
[TimeControl "60"]
[Termination "hipposcottimus won on time"]
[StartTime "00:30:26"]
[EndDate "2010.12.11"]
[EndTime "00:32:46"]
[Link "https://www.chess.com/game/live/76070773"]

1. d4 {[%clk 0:01:00]} 1... d5 {[%clk 0:01:00]} 2. Bg5 {[%clk 0:00:59.6]} 2... c6 {[%clk 0:00:59.7]} 3. c4 {[%clk 0:00:58.4]} 3... f6 {[%clk 0:00:59.4]} 4. Bh4 {[%clk 0:00:57.5]} 4... e6 {[%clk 0:00:59]} 5. e3 {[%clk 0:00:56.3]} 5... Be7 {[%clk 0:00:58.7]} 6. Qh5+ {[%clk 0:00:54.7]} 6... g6 {[%clk 0:00:56.4]} 7. Qf3 {[%clk 0:00:54.2]} 7... g5 {[%clk 0:00:55.3]} 8. Bg3 {[%clk 0:00:52.7]} 8... Nh6 {[%clk 0:00:55]} 9. Bxb8 {[%clk 0:00:51.3]} 9... Rxb8 {[%clk 0:00:53.5]} 10. c5 {[%clk 0:00:51.3]} 10... Nf5 {[%clk 0:00:52.5]} 11. Bd3 {[%clk 0:00:51.3]} 11... Bf8 {[%clk 0:00:43.7]} 12. Bxf5 {[%clk 0:00:49]} 12... exf5 {[%clk 0:00:43.5]} 13. Nc3 {[%clk 0:00:48.2]} 13... Bg7 {[%clk 0:00:43.2]} 14. e4 {[%clk 0:00:47.2]} 14... O-O {[%clk 0:00:42.9]} 15. e5 {[%clk 0:00:46.5]} 15... fxe5 {[%clk 0:00:41.3]} 16. O-O-O {[%clk 0:00:43.8]} 16... exd4 {[%clk 0:00:39.2]} 17. Nce2 {[%clk 0:00:41.9]} 17... g4 {[%clk 0:00:37.9]} 18. Qd3 {[%clk 0:00:41.1]} 18... Bh6+ {[%clk 0:00:37.4]} 19. Kb1 {[%clk 0:00:39.4]} 19... Bg7 {[%clk 0:00:36.7]} 20. g3 {[%clk 0:00:38.4]} 20... b6 {[%clk 0:00:36.4]} 21. Nf4 {[%clk 0:00:37.5]} 21... bxc5 {[%clk 0:00:36]} 22. a3 {[%clk 0:00:32.8]} 22... Qb6 {[%clk 0:00:35.6]} 23. Rd2 {[%clk 0:00:28.6]} 23... c4 {[%clk 0:00:34.3]} 24. Qc2 {[%clk 0:00:27]} 24... c3 {[%clk 0:00:33.7]} 25. b4 {[%clk 0:00:24.9]} 25... cxd2 {[%clk 0:00:31.8]} 26. Qxd2 {[%clk 0:00:23.2]} 26... Bh6 {[%clk 0:00:28.3]} 27. Nge2 {[%clk 0:00:20.8]} 27... d3 {[%clk 0:00:26.1]} 28. Qa2 {[%clk 0:00:17.1]} 28... Qxf2 {[%clk 0:00:23.5]} 29. Nxd5 {[%clk 0:00:15.1]} 29... Qxe2 {[%clk 0:00:19.4]} 30. Nc3+ {[%clk 0:00:13.4]} 30... Kh8 {[%clk 0:00:16.9]} 31. Nxe2 {[%clk 0:00:12.4]} 31... dxe2 {[%clk 0:00:16.7]} 32. Qxe2 {[%clk 0:00:12]} 32... Re8 {[%clk 0:00:16.4]} 33. Qg2 {[%clk 0:00:11.4]} 33... Be6 {[%clk 0:00:14.2]} 34. Qxc6 {[%clk 0:00:11.4]} 34... Rbc8 {[%clk 0:00:13.2]} 35. Qxc8 {[%clk 0:00:10.2]} 35... f4 {[%clk 0:00:12.9]} 36. Re1 {[%clk 0:00:10]} 36... Bf5+ {[%clk 0:00:11.7]} 37. Ka2 {[%clk 0:00:06.4]} 37... Rxc8 {[%clk 0:00:09.5]} 38. Re8+ {[%clk 0:00:06]} 38... Rxe8 {[%clk 0:00:07.5]} 39. gxf4 {[%clk 0:00:05.3]} 39... Re2+ {[%clk 0:00:07.2]} 40. Kb3 {[%clk 0:00:04.2]} 40... Bxf4 {[%clk 0:00:06.9]} 41. Ka4 {[%clk 0:00:04.2]} 41... Bxh2 {[%clk 0:00:06.6]} 42. Ka5 {[%clk 0:00:03.6]} 42... Rf2 {[%clk 0:00:06.4]} 43. a4 {[%clk 0:00:03.6]} 43... g3 {[%clk 0:00:05.9]} 44. b5 {[%clk 0:00:03.6]} 44... g2 {[%clk 0:00:05.7]} 45. Ka6 {[%clk 0:00:03.6]} 45... g1=Q {[%clk 0:00:04.6]} 46. b6 {[%clk 0:00:03.6]} 46... Qf1+ {[%clk 0:00:04.3]} 47. Kb7 {[%clk 0:00:00.9]} 47... Qg2+ {[%clk 0:00:02.8]} 0-1

[Event "Live Chess"]
[Site "Chess.com"]
[Date "2010.12.11"]
[Round "-"]
[White "Camilosub-master_92"]
[Black "hipposcottimus"]
[Result "1-0"]
[CurrentPosition "rnb2rk1/ppp4Q/1n2p3/3pP2P/8/2PB1N2/P1P2PP1/R3K2R b KQ -"]
[Timezone "UTC"]
[ECO "C11"]
[ECOUrl "https://www.chess.com/openings/French-Defense-Classical-Variation"]
[UTCDate "2010.12.11"]
[UTCTime "00:29:17"]
[WhiteElo "1809"]
[BlackElo "1660"]
[TimeControl "60"]
[Termination "Camilosub-master_92 won by checkmate"]
[StartTime "00:29:17"]
[EndDate "2010.12.11"]
[EndTime "00:29:50"]
[Link "https://www.chess.com/game/live/76070600"]

1. d4 {[%clk 0:01:00]} 1... d5 {[%clk 0:01:00]} 2. Nc3 {[%clk 0:00:59.4]} 2... Nf6 {[%clk 0:00:57.9]} 3. e4 {[%clk 0:00:59.2]} 3... e6 {[%clk 0:00:57.5]} 4. e5 {[%clk 0:00:58.7]} 4... Nfd7 {[%clk 0:00:53.5]} 5. Nf3 {[%clk 0:00:58.2]} 5... f6 {[%clk 0:00:52.9]} 6. Bd3 {[%clk 0:00:57.9]} 6... fxe5 {[%clk 0:00:52.3]} 7. dxe5 {[%clk 0:00:57.6]} 7... Bb4 {[%clk 0:00:51.7]} 8. Be3 {[%clk 0:00:57.1]} 8... Bxc3+ {[%clk 0:00:51.1]} 9. bxc3 {[%clk 0:00:56.7]} 9... Nb6 {[%clk 0:00:50.5]} 10. Qd2 {[%clk 0:00:55.8]} 10... O-O {[%clk 0:00:50.2]} 11. h3 {[%clk 0:00:55]} 11... Qe7 {[%clk 0:00:49.5]} 12. h4 {[%clk 0:00:54.7]} 12... Qf7 {[%clk 0:00:49.2]} 13. h5 {[%clk 0:00:54.5]} 13... h6 {[%clk 0:00:46]} 14. Bxh6 {[%clk 0:00:53.1]} 14... gxh6 {[%clk 0:00:45.3]} 15. Qxh6 {[%clk 0:00:52.1]} 15... Qh7 {[%clk 0:00:45.1]} 16. Qxh7# {[%clk 0:00:50.5]} 1-0

[Event "Live Chess"]
[Site "Chess.com"]
[Date "2010.12.11"]
[Round "-"]
[White "hipposcottimus"]
[Black "Camilosub-master_92"]
[Result "0-1"]
[CurrentPosition "5rk1/pp1Q3R/2p3pp/3p4/6r1/2N3P1/PPP2q2/4R1K1 w - -"]
[Timezone "UTC"]
[ECO "B01"]
[ECOUrl "https://www.chess.com/openings/Scandinavian-Defense-Blackburne-Kloosterboer-Gambit"]
[UTCDate "2010.12.11"]
[UTCTime "00:26:52"]
[WhiteElo "1666"]
[BlackElo "1752"]
[TimeControl "60"]
[Termination "Camilosub-master_92 won on time"]
[StartTime "00:26:52"]
[EndDate "2010.12.11"]
[EndTime "00:29:06"]
[Link "https://www.chess.com/game/live/76070048"]

1. e4 {[%clk 0:01:00]} 1... d5 {[%clk 0:01:00]} 2. exd5 {[%clk 0:00:58.4]} 2... c6 {[%clk 0:00:59.5]} 3. d6 {[%clk 0:00:57]} 3... exd6 {[%clk 0:00:57.2]} 4. Nf3 {[%clk 0:00:56.2]} 4... Nf6 {[%clk 0:00:56.9]} 5. d4 {[%clk 0:00:55.8]} 5... Bg4 {[%clk 0:00:56.5]} 6. Bg5 {[%clk 0:00:55.2]} 6... Bxf3 {[%clk 0:00:55.6]} 7. Qxf3 {[%clk 0:00:54.4]} 7... Be7 {[%clk 0:00:55.4]} 8. Bc4 {[%clk 0:00:51.9]} 8... h6 {[%clk 0:00:54.7]} 9. Bh4 {[%clk 0:00:49.7]} 9... d5 {[%clk 0:00:52.5]} 10. Bd3 {[%clk 0:00:48.5]} 10... Nbd7 {[%clk 0:00:50.5]} 11. O-O {[%clk 0:00:44.3]} 11... Ne4 {[%clk 0:00:46]} 12. Bxe4 {[%clk 0:00:41.1]} 12... Bxh4 {[%clk 0:00:44.6]} 13. Bd3 {[%clk 0:00:37.6]} 13... O-O {[%clk 0:00:43.6]} 14. Qf5 {[%clk 0:00:36.3]} 14... g6 {[%clk 0:00:40]} 15. Qf4 {[%clk 0:00:35.9]} 15... Bg5 {[%clk 0:00:38.9]} 16. Qf3 {[%clk 0:00:33.7]} 16... Nf6 {[%clk 0:00:37.6]} 17. Qg3 {[%clk 0:00:32.5]} 17... Nh5 {[%clk 0:00:36.6]} 18. Qg4 {[%clk 0:00:30.9]} 18... f5 {[%clk 0:00:31.3]} 19. Bxf5 {[%clk 0:00:27.3]} 19... Rxf5 {[%clk 0:00:29.7]} 20. h4 {[%clk 0:00:25.2]} 20... Rf4 {[%clk 0:00:27]} 21. Qe6+ {[%clk 0:00:23.7]} 21... Kh7 {[%clk 0:00:20.8]} 22. hxg5 {[%clk 0:00:21.2]} 22... Qxg5 {[%clk 0:00:17.9]} 23. Qd7+ {[%clk 0:00:17.4]} 23... Ng7 {[%clk 0:00:16.6]} 24. Nc3 {[%clk 0:00:15.6]} 24... Rh4 {[%clk 0:00:15]} 25. Rfe1 {[%clk 0:00:13.5]} 25... Qf4 {[%clk 0:00:13.6]} 26. g3 {[%clk 0:00:12.4]} 26... Rg4 {[%clk 0:00:12.4]} 27. Re3 {[%clk 0:00:09.8]} 27... Qxd4 {[%clk 0:00:09.8]} 28. Re7 {[%clk 0:00:05.6]} 28... Rf8 {[%clk 0:00:07.5]} 29. Rxg7+ {[%clk 0:00:04]} 29... Kh8 {[%clk 0:00:05]} 30. Rh7+ {[%clk 0:00:02.6]} 30... Kg8 {[%clk 0:00:03.3]} 31. Re1 {[%clk 0:00:00.3]} 31... Qxf2+ {[%clk 0:00:01.7]} 0-1

[Event "Live Chess"]
[Site "Chess.com"]
[Date "2010.12.11"]
[Round "-"]
[White "Camilosub-master_92"]
[Black "hipposcottimus"]
[Result "1-0"]
[CurrentPosition "r1bk3R/pp4Q1/2n1p3/8/1P6/5P2/2P2P2/R3K3 b Q -"]
[Timezone "UTC"]
[ECO "D00"]
[ECOUrl "https://www.chess.com/openings/Queens-Pawn-Opening-Chigorin-Variation-2...c6-3.e4"]
[UTCDate "2010.12.11"]
[UTCTime "00:24:59"]
[WhiteElo "1667"]
[BlackElo "1674"]
[TimeControl "60"]
[Termination "Camilosub-master_92 won by checkmate"]
[StartTime "00:24:59"]
[EndDate "2010.12.11"]
[EndTime "00:26:36"]
[Link "https://www.chess.com/game/live/76069665"]

1. d4 {[%clk 0:01:00]} 1... d5 {[%clk 0:01:00]} 2. Nc3 {[%clk 0:00:59.7]} 2... c6 {[%clk 0:00:59.8]} 3. e4 {[%clk 0:00:59.3]} 3... e6 {[%clk 0:00:59.6]} 4. e5 {[%clk 0:00:58.9]} 4... f6 {[%clk 0:00:58.4]} 5. Nf3 {[%clk 0:00:58.7]} 5... fxe5 {[%clk 0:00:57.9]} 6. dxe5 {[%clk 0:00:58.4]} 6... Nf6 {[%clk 0:00:57.6]} 7. Bd3 {[%clk 0:00:58.2]} 7... Nfd7 {[%clk 0:00:54.5]} 8. Be3 {[%clk 0:00:57.1]} 8... Bb4 {[%clk 0:00:53.3]} 9. Qd2 {[%clk 0:00:56.8]} 9... c5 {[%clk 0:00:50.4]} 10. a3 {[%clk 0:00:56.3]} 10... d4 {[%clk 0:00:49.3]} 11. axb4 {[%clk 0:00:54.4]} 11... dxc3 {[%clk 0:00:48.5]} 12. bxc3 {[%clk 0:00:53.6]} 12... cxb4 {[%clk 0:00:47.7]} 13. cxb4 {[%clk 0:00:52]} 13... O-O {[%clk 0:00:46.3]} 14. h4 {[%clk 0:00:50.8]} 14... Nc6 {[%clk 0:00:42.5]} 15. h5 {[%clk 0:00:50.5]} 15... Ndxe5 {[%clk 0:00:41]} 16. h6 {[%clk 0:00:50.2]} 16... Nxf3+ {[%clk 0:00:36.4]} 17. gxf3 {[%clk 0:00:49.6]} 17... Qf6 {[%clk 0:00:34.7]} 18. hxg7 {[%clk 0:00:48.2]} 18... Rf7 {[%clk 0:00:33]} 19. Bxh7+ {[%clk 0:00:44.3]} 19... Kxg7 {[%clk 0:00:30.6]} 20. Bh6+ {[%clk 0:00:41.1]} 20... Kxh7 {[%clk 0:00:24.6]} 21. Bg5+ {[%clk 0:00:40.3]} 21... Kg6 {[%clk 0:00:23.1]} 22. Rh6+ {[%clk 0:00:37.4]} 22... Kg7 {[%clk 0:00:17.1]} 23. Bxf6+ {[%clk 0:00:35.8]} 23... Rxf6 {[%clk 0:00:16.8]} 24. Qg5+ {[%clk 0:00:34.9]} 24... Rg6 {[%clk 0:00:15.6]} 25. Qxg6+ {[%clk 0:00:34]} 25... Kf8 {[%clk 0:00:14.4]} 26. Qf6+ {[%clk 0:00:30]} 26... Ke8 {[%clk 0:00:13.7]} 27. Qg7 {[%clk 0:00:26.3]} 27... Kd8 {[%clk 0:00:12.6]} 28. Rh8# {[%clk 0:00:24.7]} 1-0

[Event "Live Chess"]
[Site "Chess.com"]
[Date "2010.12.11"]
[Round "-"]
[White "hipposcottimus"]
[Black "onedaime"]
[Result "1-0"]
[CurrentPosition "8/8/8/6pp/Rp3k2/P1b5/6PP/6K1 b - -"]
[Timezone "UTC"]
[ECO "C41"]
[ECOUrl "https://www.chess.com/openings/Philidor-Defense-3.Bc4-Nf6"]
[UTCDate "2010.12.11"]
[UTCTime "00:21:32"]
[WhiteElo "1684"]
[BlackElo "1533"]
[TimeControl "60"]
[Termination "hipposcottimus won on time"]
[StartTime "00:21:32"]
[EndDate "2010.12.11"]
[EndTime "00:23:24"]
[Link "https://www.chess.com/game/live/76068934"]

1. e4 {[%clk 0:01:00]} 1... e5 {[%clk 0:01:00]} 2. Nf3 {[%clk 0:00:59.6]} 2... d6 {[%clk 0:00:59.6]} 3. Bc4 {[%clk 0:00:59.2]} 3... Nf6 {[%clk 0:00:58.6]} 4. d4 {[%clk 0:00:58.5]} 4... h6 {[%clk 0:00:57.4]} 5. dxe5 {[%clk 0:00:57.5]} 5... dxe5 {[%clk 0:00:56.7]} 6. Qxd8+ {[%clk 0:00:56.8]} 6... Kxd8 {[%clk 0:00:56.2]} 7. Nxe5 {[%clk 0:00:56.4]} 7... Ke7 {[%clk 0:00:49.3]} 8. Bxf7 {[%clk 0:00:51.9]} 8... Be6 {[%clk 0:00:46.5]} 9. Bh5 {[%clk 0:00:48.1]} 9... Nxh5 {[%clk 0:00:45.5]} 10. Ng6+ {[%clk 0:00:46.1]} 10... Kf7 {[%clk 0:00:41.9]} 11. Nxh8+ {[%clk 0:00:45.7]} 11... Kg8 {[%clk 0:00:39.6]} 12. Ng6 {[%clk 0:00:45.1]} 12... Kf7 {[%clk 0:00:39.2]} 13. Nf4 {[%clk 0:00:43.7]} 13... Nxf4 {[%clk 0:00:37.8]} 14. Bxf4 {[%clk 0:00:43.4]} 14... g5 {[%clk 0:00:36.2]} 15. Bxc7 {[%clk 0:00:42.9]} 15... Nd7 {[%clk 0:00:34.9]} 16. Ba5 {[%clk 0:00:42.5]} 16... Rc8 {[%clk 0:00:33.3]} 17. Bc3 {[%clk 0:00:42.3]} 17... Nf6 {[%clk 0:00:29.7]} 18. O-O {[%clk 0:00:41.9]} 18... Nxe4 {[%clk 0:00:28.8]} 19. Bd4 {[%clk 0:00:41.4]} 19... Rd8 {[%clk 0:00:27.4]} 20. f3 {[%clk 0:00:41.1]} 20... Rxd4 {[%clk 0:00:26]} 21. fxe4+ {[%clk 0:00:40.9]} 21... Ke7 {[%clk 0:00:25.3]} 22. Nc3 {[%clk 0:00:39.9]} 22... b5 {[%clk 0:00:22.1]} 23. Rfe1 {[%clk 0:00:39.5]} 23... b4 {[%clk 0:00:20.2]} 24. Nd5+ {[%clk 0:00:39.1]} 24... Bxd5 {[%clk 0:00:18.7]} 25. exd5+ {[%clk 0:00:38.8]} 25... Kd6 {[%clk 0:00:18.3]} 26. c4 {[%clk 0:00:38.1]} 26... Rxc4 {[%clk 0:00:16.9]} 27. Re6+ {[%clk 0:00:35.5]} 27... Kxd5 {[%clk 0:00:15.3]} 28. Rf6 {[%clk 0:00:35.2]} 28... Bg7 {[%clk 0:00:13.5]} 29. Rf5+ {[%clk 0:00:33.3]} 29... Ke4 {[%clk 0:00:11.9]} 30. Rf7 {[%clk 0:00:33]} 30... Bxb2 {[%clk 0:00:10.5]} 31. Rb1 {[%clk 0:00:31.6]} 31... Rc1+ {[%clk 0:00:09.6]} 32. Rxc1 {[%clk 0:00:29.2]} 32... Bxc1 {[%clk 0:00:09.2]} 33. Rxa7 {[%clk 0:00:28.8]} 33... h5 {[%clk 0:00:07.5]} 34. Rb7 {[%clk 0:00:28.3]} 34... Bd2 {[%clk 0:00:06]} 35. Ra7 {[%clk 0:00:25.1]} 35... Bc3 {[%clk 0:00:04.9]} 36. Ra4 {[%clk 0:00:23.2]} 36... Kf4 {[%clk 0:00:04.2]} 37. a3 {[%clk 0:00:22.4]} 1-0

[Event "Live Chess"]
[Site "Chess.com"]
[Date "2010.12.11"]
[Round "-"]
[White "SUPREM3"]
[Black "hipposcottimus"]
[Result "1-0"]
[CurrentPosition "2r5/4k1pp/2Pb4/1B1K1p2/8/8/5nPP/2R5 b - -"]
[Timezone "UTC"]
[ECO "D00"]
[ECOUrl "https://www.chess.com/openings/Queens-Pawn-Opening-1...d5"]
[UTCDate "2010.12.11"]
[UTCTime "00:18:25"]
[WhiteElo "1567"]
[BlackElo "1679"]
[TimeControl "60"]
[Termination "SUPREM3 won on time"]
[StartTime "00:18:25"]
[EndDate "2010.12.11"]
[EndTime "00:20:39"]
[Link "https://www.chess.com/game/live/76068266"]

1. d4 {[%clk 0:01:00]} 1... d5 {[%clk 0:01:00]} 2. b3 {[%clk 0:00:59.5]} 2... c6 {[%clk 0:00:59.7]} 3. e3 {[%clk 0:00:59]} 3... b5 {[%clk 0:00:59.4]} 4. c4 {[%clk 0:00:58.5]} 4... e6 {[%clk 0:00:59]} 5. c5 {[%clk 0:00:57.6]} 5... Be7 {[%clk 0:00:55.8]} 6. b4 {[%clk 0:00:54.1]} 6... f5 {[%clk 0:00:55.5]} 7. a4 {[%clk 0:00:51.1]} 7... Nf6 {[%clk 0:00:55.2]} 8. axb5 {[%clk 0:00:49.9]} 8... Nbd7 {[%clk 0:00:51.9]} 9. bxc6 {[%clk 0:00:48.2]} 9... Nf8 {[%clk 0:00:51.6]} 10. Bb5 {[%clk 0:00:47.1]} 10... Qc7 {[%clk 0:00:50.5]} 11. Qa4 {[%clk 0:00:46.1]} 11... a6 {[%clk 0:00:49.2]} 12. Bc4 {[%clk 0:00:42.6]} 12... Ng6 {[%clk 0:00:46.1]} 13. Bd3 {[%clk 0:00:41.4]} 13... O-O {[%clk 0:00:43.7]} 14. b5 {[%clk 0:00:40.7]} 14... Ne4 {[%clk 0:00:35.6]} 15. bxa6 {[%clk 0:00:37.3]} 15... Nxc5 {[%clk 0:00:27.8]} 16. dxc5 {[%clk 0:00:31.3]} 16... Bxc5 {[%clk 0:00:27.4]} 17. Nc3 {[%clk 0:00:30.6]} 17... Bb6 {[%clk 0:00:26.5]} 18. Nb5 {[%clk 0:00:29.7]} 18... Qd8 {[%clk 0:00:22.1]} 19. Qb4 {[%clk 0:00:27.5]} 19... Bxa6 {[%clk 0:00:17.6]} 20. Kd2 {[%clk 0:00:22.5]} 20... Bxb5 {[%clk 0:00:16.6]} 21. Rxa8 {[%clk 0:00:20.6]} 21... Qxa8 {[%clk 0:00:16]} 22. Bxb5 {[%clk 0:00:19.9]} 22... Bc7 {[%clk 0:00:14.7]} 23. Ne2 {[%clk 0:00:18.5]} 23... Qa2+ {[%clk 0:00:13.9]} 24. Qb2 {[%clk 0:00:17.2]} 24... Qxb2+ {[%clk 0:00:12.9]} 25. Bxb2 {[%clk 0:00:16.6]} 25... Ba5+ {[%clk 0:00:12.1]} 26. Bc3 {[%clk 0:00:15.2]} 26... Bc7 {[%clk 0:00:11.8]} 27. Rb1 {[%clk 0:00:13.6]} 27... Rc8 {[%clk 0:00:11.5]} 28. Ba5 {[%clk 0:00:12.8]} 28... Bxa5+ {[%clk 0:00:09.9]} 29. Nc3 {[%clk 0:00:12]} 29... Bc7 {[%clk 0:00:09.3]} 30. Nxd5 {[%clk 0:00:10.7]} 30... Bd6 {[%clk 0:00:07.6]} 31. Kd3 {[%clk 0:00:10]} 31... Kf7 {[%clk 0:00:06.1]} 32. Ne7 {[%clk 0:00:09.1]} 32... Kxe7 {[%clk 0:00:05.2]} 33. Rc1 {[%clk 0:00:08.4]} 33... Ne5+ {[%clk 0:00:04.5]} 34. Kd4 {[%clk 0:00:07.1]} 34... Ng4 {[%clk 0:00:02.2]} 35. e4 {[%clk 0:00:06.2]} 35... Nxf2 {[%clk 0:00:01.5]} 36. exf5 {[%clk 0:00:04.9]} 36... exf5 {[%clk 0:00:00.7]} 37. Kd5 {[%clk 0:00:04.3]} 1-0